bitfinex/quotes_SOLUSD_20240712
["timestamp","ask_amount","ask_price","bid_price","bid_amount"]
[1720793589157,7.2,138.89,138.85,27.2018]
[1720793590465,0.8701313,138.9,138.86,1.44008902]
[1720793590681,0.8701313,138.9,138.85,20.0]
[1720793590851,0.8701313,138.9,138.86,1.43967417]
[1720793591049,0.8701313,138.9,138.84,21.43967417]
[1720793591267,0.8701313,138.9,138.88,7.2001]
[1720793591465,0.8701313,138.9,138.87,7.2008]
[1720793591772,0.8701313,138.9,138.85,7.2019]
[1720793591962,0.8701313,138.9,138.86,20.0]
[1720793592366,7.2003,138.89,138.86,20.0]
[1720793592551,8.0696313,138.9,138.86,27.2014]
[1720793592859,7.1999,138.89,138.86,20.0]
[1720793593059,8.0695313,138.9,138.86,20.0]
[1720793593255,0.8701313,138.9,138.83,1.44019015]
[1720793593972,0.8701313,138.9,138.82,20.0]
[1720793594169,22.5501313,138.9,138.82,20.0]
[1720793594562,7.2,138.89,138.85,7.2017]
[1720793594779,7.2,138.89,138.86,20.0]
[1720793595153,29.7496313,138.9,138.86,20.0]
[1720793595452,8.0696313,138.9,138.86,27.2012]
[1720793595667,7.1999,138.89,138.86,20.0]
[1720793596052,8.0695313,138.9,138.86,27.2013]
[1720793596253,8.0695313,138.9,138.87,7.2007]
[1720793596254,0.8701313,138.9,138.87,7.2007]
[1720793596978,0.8701313,138.9,138.88,7.2004]
[1720793597268,8.0695313,138.9,138.86,27.2013]
[1720793597570,0.8701313,138.9,138.86,20.0]
[1720793597770,7.2004,138.88,138.84,27.2023]
[1720793597976,7.2006,138.88,138.84,7.2023]
[1720793598358,21.68,138.88,138.82,7.2031]
[1720793598575,7.2011,138.87,138.83,7.203]
[1720793598758,31.68,138.87,138.81,16.5325]
[1720793598958,7.2023,138.85,138.81,23.7362]
[1720793599172,52.2017,138.86,138.82,7.2034]
[1720793599555,10.0,138.84,138.77,16.1406]
[1720793599760,7.2035,138.82,138.78,7.2053]
[1720793599962,7.2032,138.83,138.79,7.2051]
[1720793600275,7.2031,138.83,138.79,7.2047]
[1720793600676,7.2035,138.82,138.77,16.1406]
[1720793600853,10.0,138.84,138.78,7.2056]
[1720793601051,7.2038,138.82,138.78,7.2056]
[1720793601483,7.2038,138.82,138.79,20.0]
[1720793602275,7.204,138.81,138.78,7.2056]
[1720793602473,28.884,138.81,138.77,7.2061]
[1720793602690,21.68,138.8,138.74,15.1137]
[1720793602880,7.2054,138.79,138.75,7.2068]
[1720793603178,7.2056,138.78,138.71,48.3737]
[1720793603393,28.8856,138.78,138.74,7.2076]
[1720793603700,34.9534,138.78,138.74,7.2076]
[1720793603878,7.2061,138.77,138.73,7.2081]
[1720793604365,7.2068,138.76,138.71,15.1137]
[1720793604679,21.68,138.77,138.74,7.2073]
[1720793605170,21.68,138.77,138.73,7.208]
[1720793605477,13.2734,138.78,138.71,15.1137]
[1720793605794,7.207,138.76,138.72,7.2084]
[1720793606490,7.207,138.76,138.71,22.3228]
[1720793606690,7.2074,138.75,138.71,7.2088]
[1720793606989,21.68,138.76,138.72,20.0]
[1720793607191,34.0826,138.78,138.72,20.0]
[1720793607488,34.0826,138.78,138.68,15.9317]
[1720793607489,23.2739,138.78,138.73,7.208]
[1720793607665,7.2067,138.76,138.72,7.2086]
[1720793607867,7.2072,138.75,138.69,20.0]
[1720793608065,7.2067,138.76,138.72,7.2083]
[1720793608482,28.8867,138.76,138.72,7.2083]
[1720793608682,38.8875,138.75,138.7,7.2094]
[1720793608882,7.2078,138.74,138.71,20.0]
[1720793609997,7.2078,138.74,138.7,7.2094]
[1720793610589,7.2078,138.74,138.68,15.9317]
[1720793610590,7.2077,138.74,138.71,7.2092]
[1720793611268,7.2077,138.74,138.7,7.2096]
[1720793611685,7.2077,138.74,138.71,7.2092]
[1720793611990,28.8877,138.74,138.7,7.2096]
[1720793613301,10.0,138.75,138.6,259.1]
[1720793613302,21.68,138.73,138.65,16.0261]
[1720793613509,7.2091,138.72,138.65,16.0261]
[1720793613796,56.1349,138.71,138.61,16.383]
[1720793614092,7.2105,138.69,138.65,7.212]
[1720793614515,28.89,138.7,138.66,7.2118]
[1720793614790,21.68,138.7,138.61,16.383]
[1720793614993,21.68,138.7,138.68,7.2107]
[1720793615169,21.68,138.7,138.67,7.2112]
[1720793615368,28.8899,138.7,138.62,53.26]
[1720793615973,13.6406,138.71,138.63,0.37903652]
[1720793616170,28.8887,138.73,138.62,53.26]
[1720793616495,7.2087,138.72,138.63,45.0]
[1720793616673,7.2087,138.72,138.68,7.2105]
[1720793616872,7.2087,138.72,138.69,7.2103]
[1720793617080,7.2084,138.73,138.69,7.2103]
[1720793617386,7.2088,138.72,138.68,7.2106]
[1720793617699,7.2101,138.7,138.66,7.2117]
[1720793617876,7.2101,138.7,138.66,27.2117]
[1720793618278,7.2093,138.71,138.67,7.2111]
[1720793618672,7.2099,138.7,138.66,27.2117]
[1720793619174,28.0208,138.73,138.66,20.0]
[1720793619175,7.2104,138.69,138.66,20.0]
[1720793619391,21.68,138.72,138.66,20.0]
[1720793619601,7.2101,138.7,138.66,7.2115]
[1720793619784,7.2101,138.7,138.67,20.0]
[1720793620299,7.2104,138.69,138.67,20.0]
[1720793620502,7.2104,138.69,138.66,20.0]
[1720793620874,7.21,138.7,138.66,27.2117]
[1720793621476,66.68,138.71,138.66,20.0]
[1720793621477,7.2104,138.69,138.66,20.0]
[1720793621785,7.2099,138.7,138.66,27.2117]
[1720793622397,7.2103,138.69,138.66,7.2117]
[1720793622580,7.21,138.7,138.66,7.2117]
[1720793622778,7.2104,138.69,138.65,7.2122]
[1720793623800,7.2099,138.7,138.66,7.2118]
[1720793624398,7.2103,138.69,138.66,7.2118]
[1720793624703,7.2103,138.69,138.65,7.2122]
[1720793624882,30.0,138.67,138.65,7.2122]
[1720793627708,30.0,138.67,138.66,7.2118]
[1720793627882,30.0,138.67,138.61,49.643]
[1720793627883,30.0,138.67,138.65,7.2122]
[1720793628401,30.0,138.67,138.61,49.643]
[1720793628613,30.0,138.67,138.62,20.0]
[1720793628980,30.0,138.67,138.65,7.212]
[1720793629277,30.0,138.67,138.66,7.2118]
[1720793629496,30.0,138.67,138.62,20.0]
[1720793629797,30.0,138.67,138.65,7.2122]
[1720793630014,30.0,138.67,138.66,7.2118]
[1720793630201,30.0,138.67,138.65,7.2122]
[1720793630679,30.0,138.67,138.62,20.0]
[1720793631107,30.0,138.67,138.65,7.212]
[1720793631806,30.0,138.67,138.66,7.2118]
[1720793632102,30.0,138.67,138.65,7.2122]
[1720793633479,30.0,138.67,138.64,7.2127]
[1720793634206,37.2113,138.67,138.64,7.2127]
[1720793634703,30.0,138.67,138.64,7.2127]
[1720793634904,30.0,138.67,138.65,7.2123]
[1720793635407,30.0,138.67,138.66,7.2118]
[1720793636692,30.0,138.67,138.65,7.2122]
[1720793636902,30.0,138.67,138.64,7.2128]
[1720793637093,37.2114,138.67,138.63,7.2129]
[1720793637409,30.0,138.67,138.64,27.2128]
[1720793637779,30.0,138.67,138.64,7.2128]
[1720793638097,30.0,138.67,138.66,7.2118]
[1720793638292,30.0,138.67,138.61,49.643]
[1720793638509,30.0,138.67,138.66,7.2118]
[1720793638689,30.0,138.67,138.66,27.2118]
[1720793640090,7.2096,138.71,138.67,7.2111]
[1720793640295,30.0,138.68,138.67,7.2111]
[1720793640499,30.0,138.68,138.67,27.2111]
[1720793642895,7.2088,138.72,138.67,27.2111]
[1720793643117,7.2088,138.72,138.68,27.2108]
[1720793643309,30.0,138.69,138.68,27.2108]
[1720793643908,30.0,138.69,138.68,20.0]
[1720793644294,30.0,138.69,138.68,27.2108]
[1720793645089,7.2083,138.73,138.69,7.2098]
[1720793645491,38.2804,138.75,138.69,7.2098]
[1720793645492,7.2078,138.74,138.7,7.2096]
[1720793645692,30.0,138.71,138.7,7.2096]
[1720793647326,7.2072,138.75,138.71,7.2089]
[1720793647525,30.0,138.72,138.71,7.2089]
[1720793648208,30.0,138.72,138.7,7.2097]
[1720793648536,21.68,138.75,138.68,36.6187]
[1720793648833,7.2086,138.73,138.69,7.2099]
[1720793649008,7.2086,138.73,138.7,20.0]
[1720793649323,18.77998614,138.72,138.7,20.0]
[1720793649530,7.2086,138.73,138.7,20.0]
[1720793649698,18.77936789,138.72,138.7,20.0]
[1720793650027,18.77932981,138.71,138.7,20.0]
[1720793650205,18.77932981,138.71,138.68,7.2107]
[1720793650409,7.2087,138.72,138.69,20.0]
[1720793650705,18.77866432,138.71,138.69,20.0]
[1720793651023,7.2076,138.75,138.71,7.209]
[1720793651229,31.68,138.76,138.71,7.209]
[1720793651230,30.0,138.72,138.71,7.209]
[1720793651416,30.0,138.72,138.69,20.0]
[1720793651738,30.0,138.72,138.69,7.2101]
[1720793651908,37.2087,138.72,138.68,7.2105]
[1720793652300,37.2087,138.72,138.69,20.0]
[1720793652504,18.77914427,138.71,138.69,20.0]
[1720793652721,30.0,138.72,138.69,27.2102]
[1720793652931,18.77910991,138.71,138.69,27.2102]
[1720793653201,30.0,138.72,138.7,7.2098]
[1720793653402,30.0,138.71,138.7,7.2098]
[1720793653622,7.2078,138.74,138.69,20.0]
[1720793653811,18.77971627,138.73,138.72,7.2087]
[1720793654128,7.2067,138.76,138.72,7.2087]
[1720793654425,30.0,138.73,138.72,7.2087]
[1720793654734,30.0,138.73,138.71,7.2089]
[1720793655107,7.2072,138.75,138.71,7.2089]
[1720793655308,18.78083126,138.74,138.67,33.26]
[1720793655521,31.68,138.78,138.68,20.0]
[1720793655717,85.46087108,138.77,138.68,20.0]
[1720793655922,18.78087108,138.76,138.68,20.0]
[1720793656128,7.2083,138.73,138.69,7.2101]
[1720793656310,7.2083,138.73,138.7,20.0]
[1720793656734,7.2079,138.74,138.7,27.2097]
[1720793656917,18.77971222,138.73,138.7,20.0]
[1720793657128,21.68,138.75,138.65,20.0]
[1720793657428,25.98751625,138.74,138.7,7.2095]
[1720793657633,18.77981625,138.73,138.7,7.2095]
[1720793657835,7.2077,138.74,138.7,7.2095]
[1720793658014,18.77977907,138.73,138.7,7.2095]
[1720793658215,7.2088,138.72,138.68,7.2105]
[1720793658416,7.2088,138.72,138.69,20.0]
[1720793659149,7.2083,138.73,138.69,27.2101]
[1720793659313,18.77912349,138.72,138.71,7.2092]
[1720793659634,31.68,138.74,138.71,7.2092]
[1720793659809,18.77971892,138.73,138.71,7.2092]
[1720793660003,18.77971892,138.73,138.69,27.2101]
[1720793660004,7.2082,138.73,138.69,27.2101]
[1720793660529,25.98837879,138.72,138.69,20.0]
[1720793660706,7.2088,138.72,138.69,43.8903]
[1720793660911,38.8879,138.74,138.7,7.2097]
[1720793661130,18.77950789,138.73,138.7,23.8897]
[1720793661310,38.8879,138.74,138.7,23.8897]
[1720793661511,18.77955593,138.73,138.7,23.8897]
[1720793661712,38.8879,138.74,138.7,23.8897]
[1720793662012,18.77975743,138.73,138.7,23.8897]
[1720793662214,38.8879,138.74,138.7,23.8897]
[1720793662515,18.7797561,138.73,138.7,23.8897]
[1720793662731,38.8879,138.74,138.7,23.8897]
[1720793662931,18.7796372,138.73,138.7,23.8897]
[1720793663135,38.8879,138.74,138.7,23.8897]
[1720793663326,18.7796372,138.73,138.7,23.8897]
[1720793663633,38.8879,138.74,138.7,23.8897]
[1720793663826,18.7796372,138.73,138.7,23.8897]
[1720793664126,38.8879,138.74,138.7,23.8897]
[1720793664329,18.77963852,138.73,138.7,23.8897]
[1720793664534,31.68,138.74,138.71,7.2092]
[1720793664733,18.7797,138.73,138.71,7.2092]
[1720793664933,38.8877,138.74,138.7,23.8895]
[1720793665132,18.77958996,138.73,138.7,16.68]
[1720793665311,7.2067,138.76,138.72,23.8884]
[1720793665512,18.78053434,138.75,138.73,16.68]
[1720793665712,30.0,138.74,138.73,16.68]
[1720793665914,30.0,138.74,138.73,23.8882]
[1720793666325,6.4062,138.79,138.76,7.2066]
[1720793666630,18.78140753,138.78,138.77,16.68]
[1720793667044,25.98700753,138.78,138.74,7.2073]
[1720793667214,25.98750753,138.77,138.73,7.208]
[1720793667416,18.78140753,138.76,138.74,20.0]
[1720793667616,18.78140753,138.76,138.74,27.2076]
[1720793667828,28.8858,138.78,138.74,27.2076]
[1720793668039,70.98787703,138.77,138.74,16.68]
[1720793668249,7.2072,138.75,138.72,16.68]
[1720793668413,50.46046038,138.74,138.66,16.1721]
[1720793668620,70.98770396,138.73,138.7,16.68]
[1720793668931,52.2083,138.73,138.7,16.68]
[1720793669314,45.0,138.73,138.7,23.8896]
[1720793669536,38.36,138.75,138.7,16.68]
[1720793669834,92.66773891,138.74,138.7,23.8897]
[1720793670039,18.77963891,138.73,138.7,16.68]
[1720793670236,52.2081,138.74,138.7,23.8895]
[1720793670427,18.77963891,138.73,138.71,7.2092]
[1720793670626,52.2081,138.74,138.71,7.2092]
[1720793670829,18.77964024,138.73,138.71,7.2092]
[1720793671024,7.2072,138.75,138.71,23.8892]
[1720793671216,18.78012407,138.74,138.71,16.68]
[1720793671421,7.2072,138.75,138.71,23.8889]
[1720793671731,18.78027278,138.74,138.73,7.2082]
[1720793671937,23.375,138.8,138.73,36.68]
[1720793672145,25.98712782,138.79,138.75,7.2067]
[1720793672459,18.78192782,138.78,138.76,23.8863]
[1720793672620,13.3747,138.8,138.73,20.0]
[1720793672621,18.78192782,138.79,138.77,23.8861]
[1720793673343,18.78192782,138.79,138.77,16.68]
[1720793674338,7.2042,138.81,138.77,23.8861]
[1720793674546,18.78378116,138.8,138.77,23.8861]
[1720793674749,18.78378116,138.79,138.77,23.8861]
[1720793675043,7.2042,138.81,138.77,23.8861]
[1720793675242,18.78378116,138.8,138.78,16.68]
[1720793675437,10.27232243,138.82,138.78,23.8855]
[1720793675639,70.98788796,138.81,138.78,16.68]
[1720793675844,18.78378796,138.8,138.78,16.68]
[1720793676044,52.2041,138.81,138.77,23.8859]
[1720793676240,18.78378552,138.8,138.78,23.8855]
[1720793676450,52.2044,138.81,138.78,16.68]
[1720793676745,18.78378685,138.8,138.78,16.68]
[1720793677047,52.2044,138.81,138.77,23.886]
[1720793677238,25.98838552,138.8,138.77,16.68]
[1720793677440,52.2042,138.81,138.77,23.886]
[1720793677828,18.78378552,138.8,138.77,23.886]
[1720793678018,52.2042,138.81,138.77,23.886]
[1720793678219,18.78459183,138.8,138.78,7.2055]
[1720793678425,52.2043,138.81,138.77,23.8861]
[1720793678646,18.78499932,138.8,138.77,23.8861]
[1720793678858,52.2043,138.81,138.77,23.8861]
[1720793679143,18.78509386,138.8,138.77,23.8861]
[1720793679452,52.2043,138.81,138.78,16.68]
[1720793679944,52.2043,138.81,138.77,23.8861]
[1720793680242,7.2043,138.81,138.77,23.8861]
[1720793680547,7.2037,138.82,138.78,23.8855]
[1720793680858,7.2041,138.81,138.78,16.68]
[1720793681032,7.2046,138.8,138.77,16.68]
[1720793681358,7.2043,138.81,138.77,23.8861]
[1720793681731,7.2046,138.8,138.77,16.68]
[1720793682242,23.8837,138.82,138.78,7.2055]
[1720793682425,7.2037,138.82,138.78,7.2055]
[1720793682638,18.78585768,138.81,138.77,16.68]
[1720793682945,7.2049,138.8,138.76,23.8866]
[1720793683152,7.2049,138.8,138.77,20.0]
[1720793683845,7.2041,138.81,138.77,27.2061]
[1720793684158,7.2041,138.81,138.77,43.8861]
[1720793684849,7.2041,138.81,138.77,7.2061]
[1720793685433,31.68,138.79,138.72,16.2266]
[1720793685659,7.2075,138.75,138.71,23.8889]
[1720793685959,7.208,138.74,138.7,23.8896]
[1720793686342,7.2082,138.73,138.69,23.5576]
[1720793686544,7.2082,138.73,138.69,40.2376]
[1720793687435,7.2078,138.74,138.7,23.8896]
[1720793688246,7.2079,138.74,138.7,23.8897]
[1720793688638,7.2079,138.74,138.7,7.2097]
[1720793689157,7.2073,138.75,138.71,7.2092]
[1720793690544,37.7731,138.77,138.69,16.3475]
[1720793690750,25.98806567,138.76,138.72,7.2085]
[1720793690949,7.207,138.76,138.72,7.2085]
[1720793691764,25.98841643,138.75,138.72,7.2085]
[1720793691953,7.2072,138.75,138.72,7.2085]
[1720793692549,7.2072,138.75,138.69,16.3475]
[1720793692884,7.2072,138.75,138.71,7.2092]
[1720793693042,12.8762484,138.79,138.69,16.3475]
[1720793693243,18.7818536,138.78,138.75,7.2067]
[1720793693457,7.2048,138.8,138.76,7.2066]
[1720793693667,18.78296829,138.79,138.71,6.2904]
[1720793693873,7.2049,138.8,138.76,7.2066]
[1720793694567,7.2042,138.81,138.76,7.2066]
[1720793694743,18.78335603,138.8,138.76,7.2066]
[1720793694944,18.78335603,138.79,138.76,7.2066]
[1720793695146,7.2046,138.8,138.76,7.2066]
[1720793695450,18.78310798,138.79,138.76,7.2066]
[1720793695657,18.78310798,138.8,138.77,7.206]
[1720793696472,18.78310798,138.8,138.72,15.1914]
[1720793696658,7.2055,138.79,138.74,7.2075]
[1720793696965,7.2056,138.78,138.74,7.2075]
[1720793697353,7.2056,138.78,138.73,7.208]
[1720793697547,18.78191782,138.77,138.74,27.2075]
[1720793697770,7.2056,138.78,138.74,27.2075]
[1720793697948,18.78190853,138.77,138.74,20.0]
[1720793698148,7.2062,138.77,138.73,27.2082]
[1720793698459,7.2058,138.78,138.73,27.2082]
[1720793698766,18.7819052,138.77,138.74,7.2075]
[1720793698970,7.2058,138.78,138.74,7.2075]
[1720793699171,18.7819677,138.77,138.75,7.2071]
[1720793699480,7.2053,138.79,138.75,7.2071]
[1720793699650,18.7819218,138.78,138.75,7.2071]
[1720793699851,18.7819218,138.77,138.76,7.2063]
[1720793700263,7.2042,138.81,138.77,7.206]
[1720793700465,18.78306551,138.8,138.77,7.206]
[1720793700670,18.78306551,138.8,138.76,7.2065]
[1720793700857,18.78306551,138.79,138.76,7.2065]
[1720793701051,7.2038,138.82,138.78,7.2056]
[1720793701252,18.78378003,138.81,138.78,7.2056]
[1720793701453,9.16002243,138.85,138.79,20.0]
[1720793701656,18.78531956,138.84,138.81,7.2037]
[1720793701853,18.78531956,138.83,138.82,7.2035]
[1720793702054,28.8807,138.88,138.83,7.2025]
[1720793702259,18.78795016,138.87,138.82,20.0]
[1720793702565,18.78808173,138.86,138.83,7.2026]
[1720793702764,3.06862243,138.89,138.81,20.0]
[1720793702964,18.7881609,138.88,138.81,20.0]
[1720793703206,7.2018,138.86,138.82,7.203]
[1720793703469,7.2016,138.86,138.81,27.2039]
[1720793703650,7.2011,138.87,138.82,7.2033]
[1720793703851,18.78800809,138.86,138.83,7.2029]
[1720793704052,7.2015,138.86,138.82,7.2033]
[1720793704252,31.68,138.87,138.81,20.0]
[1720793704477,25.98981027,138.86,138.82,7.2033]
[1720793704674,13.06862243,138.89,138.81,20.0]
[1720793704847,18.78843063,138.88,138.81,20.0]
[1720793705059,70.98943063,138.87,138.83,7.2027]
[1720793705259,52.201,138.87,138.83,7.2027]
[1720793705784,7.2015,138.86,138.82,7.2033]
[1720793705974,7.2015,138.86,138.81,20.0]
[1720793705975,52.2011,138.87,138.83,7.203]
[1720793706376,7.2015,138.86,138.82,7.2033]
[1720793706870,7.2022,138.85,138.81,27.2036]
[1720793707091,7.2026,138.84,138.81,20.0]
[1720793707398,7.2022,138.85,138.81,20.0]
[1720793707704,83.8811,138.87,138.83,7.203]
[1720793707891,25.98933207,138.86,138.81,27.2035]
[1720793708098,7.2019,138.86,138.82,7.2035]
[1720793708404,7.202,138.85,138.81,27.2039]
[1720793708580,7.2016,138.86,138.82,7.2035]
[1720793708765,7.202,138.85,138.81,27.2038]
[1720793709171,52.201,138.87,138.83,7.2028]
[1720793709867,7.1999,138.89,138.85,7.2018]
[1720793710770,7.1999,138.89,138.85,6.2018]
[1720793711319,0.8701313,138.9,138.87,7.2004]
[1720793711477,0.8701313,138.9,138.88,7.2003]
[1720793711681,0.8701313,138.9,138.89,7.1999]
[1720793712491,0.8701313,138.9,138.89,42.9639]
[1720793715845,0.8701313,138.9,138.88,7.2004]
[1720793716143,0.8701313,138.9,138.89,7.1999]
[1720793716709,0.8701313,138.9,138.89,27.1999]
[1720793717223,0.8701313,138.9,138.85,15.8839]
[1720793717611,0.8701313,138.9,138.86,20.0]
[1720793717935,0.8701313,138.9,138.89,7.1999]
[1720793718513,0.8701313,138.9,138.89,27.1999]
[1720793719412,0.8701313,138.9,138.85,15.8839]
[1720793719618,8.0699313,138.9,138.86,7.2013]
[1720793720646,7.2005,138.88,138.84,7.2024]
[1720793720814,6.4804,138.85,138.82,7.2035]
[1720793721021,52.2026,138.84,138.74,15.2053]
[1720793721247,45.0,138.84,138.8,7.2041]
[1720793721446,52.2026,138.84,138.8,7.2041]
[1720793721649,45.0,138.84,138.8,7.2041]
[1720793721938,6.4804,138.85,138.74,15.2053]
[1720793722138,7.2011,138.87,138.74,15.2053]
[1720793722343,7.2005,138.88,138.83,7.2026]
[1720793722531,16.3459,138.89,138.8,15.9382]
[1720793722532,6.3459,138.89,138.8,15.9382]
[1720793722719,6.3459,138.89,138.85,7.2016]
[1720793723228,7.2013,138.87,138.83,7.2026]
[1720793723851,7.2011,138.87,138.83,7.2028]
[1720793724010,7.2015,138.86,138.82,7.2035]
[1720793724212,38.0259,138.89,138.8,15.9382]
[1720793724441,6.3459,138.89,138.85,7.2019]
[1720793724615,7.2004,138.88,138.84,7.2023]
[1720793725129,7.2015,138.86,138.82,7.2031]
[1720793725517,52.2024,138.85,138.81,27.2039]
[1720793725718,7.2024,138.85,138.81,27.2039]
[1720793726138,7.2024,138.85,138.81,7.2039]
[1720793726346,10.0,138.86,138.75,6.6469]
[1720793726347,7.2035,138.83,138.79,7.205]
[1720793726532,45.0,138.84,138.8,7.2044]
[1720793726533,7.2025,138.84,138.8,7.2044]
[1720793726852,7.2015,138.86,138.82,7.2031]
[1720793727024,45.0,138.85,138.82,7.2031]
[1720793727220,55.0,138.85,138.77,15.423]
[1720793727421,55.0,138.85,138.73,33.35]
[1720793727422,10.0,138.83,138.73,33.35]
[1720793727628,10.0,138.83,138.71,259.1]
[1720793727629,10.0,138.81,138.74,16.3593]
[1720793727823,66.68,138.8,138.74,16.3593]
[1720793728026,7.2053,138.79,138.75,7.2067]
[1720793728328,7.2051,138.79,138.75,7.207]
[1720793728539,66.68,138.8,138.74,7.2076]
[1720793728540,7.2057,138.78,138.74,7.2076]
[1720793728741,7.2062,138.77,138.73,7.2081]
[1720793729044,52.2068,138.76,138.72,7.2084]
[1720793730544,45.0,138.76,138.7,16.4974]
[1720793730733,52.2068,138.76,138.71,7.2089]
[1720793730930,52.2068,138.76,138.72,7.2087]
[1720793731129,10.0,138.79,138.7,16.4974]
[1720793731350,23.6837,138.82,138.7,16.4974]
[1720793731561,7.2044,138.81,138.76,7.2065]
[1720793731740,16.4797,138.82,138.74,7.2073]
[1720793732048,7.2057,138.78,138.74,7.2073]
[1720793732347,7.2057,138.78,138.7,16.4974]
[1720793732348,7.2062,138.77,138.73,7.2081]
[1720793732858,17.2071,138.76,138.72,7.2087]
[1720793733065,45.0,138.75,138.7,16.4974]
[1720793733229,52.2073,138.75,138.71,7.2089]
[1720793733550,7.2067,138.76,138.72,7.2086]
[1720793733757,7.2063,138.77,138.73,7.2081]
[1720793733932,45.0,138.76,138.73,7.2081]
[1720793735057,52.2067,138.76,138.72,7.2086]
[1720793735926,52.2067,138.76,138.7,16.4974]
[1720793735927,7.2072,138.75,138.71,7.2091]
[1720793736441,45.0,138.76,138.73,7.2082]
[1720793736756,45.0,138.76,138.71,7.2088]
[1720793737053,7.2073,138.75,138.71,7.2091]
[1720793737252,7.2077,138.74,138.7,7.2096]
[1720793737424,7.2083,138.73,138.69,7.2101]
[1720793738125,7.2087,138.72,138.69,7.2101]
[1720793738449,31.68,138.74,138.68,7.2106]
[1720793738748,7.2092,138.71,138.67,7.2112]
[1720793739448,10.0,138.72,138.64,15.998]
[1720793739648,45.0,138.71,138.68,7.2107]
[1720793739947,52.2092,138.71,138.67,7.2111]
[1720793740333,45.0,138.71,138.64,15.998]
[1720793740540,52.2096,138.71,138.67,7.2112]
[1720793740933,7.2086,138.73,138.69,7.2102]
[1720793741434,62.2087,138.72,138.68,7.2106]
[1720793741646,10.0,138.7,138.64,15.998]
[1720793741944,45.0,138.69,138.65,20.0]
[1720793742126,31.68,138.72,138.65,20.0]
[1720793742327,52.2097,138.71,138.65,20.0]
[1720793742538,52.2097,138.71,138.67,7.211]
[1720793743457,52.2094,138.71,138.65,20.0]
[1720793743758,52.2094,138.71,138.67,7.2111]
[1720793744633,17.2099,138.7,138.65,20.0]
[1720793744833,7.2099,138.7,138.66,7.2115]
[1720793745039,7.2104,138.69,138.65,27.2123]
[1720793745337,30.0,138.68,138.65,27.2123]
[1720793745538,30.0,138.68,138.65,20.0]
[1720793745737,30.0,138.68,138.65,27.212]
[1720793745967,30.0,138.68,138.66,7.2118]
[1720793746564,30.0,138.68,138.65,27.2123]
[1720793747251,30.0,138.68,138.61,15.1614]
[1720793747432,30.0,138.68,138.64,7.2129]
[1720793747433,45.0,138.67,138.64,7.2129]
[1720793747641,30.0,138.66,138.64,7.2129]
[1720793748151,30.0,138.66,138.64,7.2128]
[1720793749252,30.0,138.66,138.63,7.2133]
[1720793749462,37.212,138.66,138.62,7.2139]
[1720793749768,76.71,138.65,138.58,16.2753]
[1720793749941,30.0,138.64,138.58,16.2753]
[1720793750138,45.0,138.63,138.6,7.2149]
[1720793750657,7.2141,138.62,138.55,15.9324]
[1720793750956,7.2141,138.62,138.56,0.36662899]
[1720793751257,76.71,138.63,138.55,15.9324]
[1720793751453,7.2144,138.61,138.55,15.9324]
[1720793751659,7.2144,138.61,138.57,7.2163]
[1720793751660,30.0,138.6,138.57,7.2163]